lending/lending_fUSD_20241214
["ID","MTS","AMOUNT","RATE_DAILY","PERIOD"]
[345358578,1734181852867,-600.0,0.000267,9]
[345358579,1734181852876,-817.0,0.00026715,2]
[345358580,1734181852885,-150.0,0.00026739,2]
[345358581,1734181852894,-150.0,0.00026739,2]
[345358582,1734181852903,-150.0,0.0002674,2]
[345358583,1734181852915,-150.0,0.0002674,2]
[345358584,1734181852924,-150.0,0.00026747,2]
[345358585,1734181852932,-150.0,0.00026747,2]
[345358586,1734181852941,-150.0,0.00026755,2]
[345358587,1734181852951,-150.0,0.00026755,2]
[345358588,1734181852961,-150.0,0.00026759,2]
[345358589,1734181852970,-150.0,0.00026761,2]
[345358590,1734181852979,-150.0,0.00026763,2]
[345358591,1734181852988,-150.0,0.00026764,2]
[345358592,1734181852997,-150.0,0.00026764,2]
[345358593,1734181853006,-150.0,0.00026764,2]
[345358594,1734181853015,-150.0,0.00026767,2]
[345358595,1734181853024,-150.0,0.00026768,2]
[345358596,1734181853033,-150.0,0.0002677,2]
[345358597,1734181853042,-150.0,0.00026771,2]
[345358598,1734181853051,-150.0,0.00026773,2]
[345358599,1734181853059,-150.0,0.00026774,2]
[345358600,1734181853068,-150.0,0.00026774,2]
[345358601,1734181853078,-150.0,0.00026786,2]
[345358602,1734181853087,-150.0,0.0002679,2]
[345358603,1734181853096,-150.0,0.00026795,2]
[345358604,1734181853106,-150.0,0.00026797,2]
[345358605,1734181853115,-900.0,0.000268,9]
[345358606,1734181853124,-150.0,0.00026801,2]
[345358607,1734181853134,-150.0,0.00026801,2]
[345358608,1734181853143,-150.0,0.00026808,2]
[345358609,1734181853152,-150.0,0.00026809,2]
[345358610,1734181853164,-150.0,0.00026809,2]
[345358611,1734181853173,-150.0,0.00026809,2]
[345358612,1734181853182,-1500.0,0.00026811,2]
[345358613,1734181853191,-150.0,0.00026811,2]
[345358614,1734181853200,-150.0,0.00026813,2]
[345358615,1734181853209,-150.0,0.00026813,2]
[345358616,1734181853218,-150.0,0.00026819,2]
[345358617,1734181853227,-150.0,0.00026821,2]
[345358618,1734181853236,-150.0,0.00026821,2]
[345358619,1734181853246,-150.0,0.00026829,2]
[345358620,1734181853256,-150.0,0.0002683,2]
[345358621,1734181853265,-150.0,0.00026831,2]
[345358622,1734181853275,-160.66367141,0.00026837,2]
[345358623,1734181853285,-150.0,0.00026839,2]
[345358624,1734181853294,-150.0,0.00026842,2]
[345358625,1734181853304,-150.0,0.00026853,2]
[345358626,1734181853313,-150.0,0.00026854,2]
[345358627,1734181853322,-150.0,0.00026857,2]
[345358628,1734181853332,-150.0,0.00026859,2]
[345358629,1734181853342,-150.0,0.00026859,2]
[345358630,1734181853351,-150.0,0.0002686,2]
[345358631,1734181853360,-150.0,0.00026862,2]
[345358632,1734181853370,-150.0,0.00026869,2]
[345358633,1734181853380,-150.0,0.00026872,2]
[345358634,1734181853389,-1500.0,0.00026873,2]
[345358635,1734181853402,-150.0,0.00026873,2]
[345358636,1734181853414,-150.0,0.00026875,2]
[345358637,1734181853423,-150.0,0.00026876,2]
[345358638,1734181853433,-150.0,0.00026877,2]
[345358639,1734181853443,-150.0,0.00026878,2]
[345358640,1734181853452,-150.0,0.00026878,2]
[345358641,1734181853461,-150.0,0.00026881,2]
[345358642,1734181853470,-150.0,0.00026887,2]
[345358643,1734181853479,-150.0,0.00026899,2]
[345358644,1734181853583,-1300.0,0.000269,9]
[345358645,1734181853602,-150.0,0.00026903,2]
[345358646,1734181853611,-150.0,0.00026904,2]
[345358647,1734181853621,-150.0,0.00026905,2]
[345358648,1734181853630,-506.49223696,0.00026909,2]
[345358649,1734181853638,-276.63,0.00026909,3]
[345358650,1734181853647,-500.0,0.00026909,3]
[345358651,1734181853657,-329.8,0.00026909,3]
[345358652,1734181853669,-500.0,0.00026909,3]
[345358653,1734181853677,-505.91,0.00026909,3]
[345358654,1734181853686,-608.77,0.00026909,3]
[345358655,1734181853695,-539.55,0.00026909,3]
[345358656,1734181853704,-500.0,0.00026909,3]
[345358657,1734181853714,-500.0,0.00026909,3]
[345358658,1734181853723,-500.0,0.00026909,3]
[345358659,1734181853733,-166.03,0.00026909,3]
[345358660,1734181853743,-500.0,0.00026909,3]
[345358661,1734181853752,-503.5348061,0.00026909,3]
[345358662,1734181853761,-502.53116447,0.00026909,3]
[345358663,1734181853770,-500.0,0.00026909,3]
[345358664,1734181853779,-558.5,0.00026909,3]
[345358665,1734181853788,-500.0,0.00026909,3]
[345358666,1734181853798,-500.0,0.00026909,3]
[345358667,1734181853808,-391.17,0.00026909,3]
[345358668,1734181853817,-506.1407298,0.00026909,3]
[345358669,1734181853827,-500.0,0.00026909,3]
[345358670,1734181853836,-500.0,0.00026909,3]
[345358671,1734181853846,-500.0,0.00026909,3]
[345358672,1734181853855,-500.0,0.00026909,3]
[345358673,1734181853864,-570.4,0.00026909,3]
[345358674,1734181853874,-500.0,0.00026909,3]
[345358675,1734181853883,-621.32654243,0.00026909,3]
[345358676,1734181853892,-500.0,0.00026909,3]
[345358677,1734181853902,-500.0,0.00026909,3]
[345358678,1734181853913,-500.0,0.00026909,3]
[345358679,1734181853922,-500.0,0.00026909,3]
[345358680,1734181853932,-734.49806596,0.00026909,3]
[345358681,1734181853941,-500.0,0.00026909,2]
[345358682,1734181853951,-150.0,0.00026909,2]
[345358683,1734181853960,-329.52556972,0.0002691,2]
[345358684,1734181853969,-150.0,0.0002691,2]
[345358685,1734181853978,-160.89808607,0.0002691,2]
[345358686,1734181853987,-757.5821,0.0002691,2]
[345358687,1734181853996,-2039.81448485,0.0002691,2]
[345358688,1734181854005,-150.0,0.00026912,2]
[345358689,1734181854014,-150.0,0.00026913,2]
[345358690,1734181854023,-150.0,0.00026917,2]
[345358691,1734181854032,-150.0,0.00026917,2]
[345358692,1734181854041,-1277.05481703,0.00026918,2]
[345358693,1734181854051,-157.6423576,0.00026922,10]
[345358694,1734181854060,-1500.0,0.00026923,2]
[345358695,1734181854069,-150.0,0.00026923,2]
[345358696,1734181854079,-150.0,0.00026923,2]
[345358697,1734181854088,-150.0,0.00026924,2]
[345358698,1734181854097,-150.0,0.00026927,2]
[345358699,1734181854106,-150.0,0.00026929,2]
[345358700,1734181854115,-150.0,0.00026929,2]
[345358701,1734181854124,-150.0,0.00026936,2]
[345358702,1734181854133,-150.0,0.00026937,2]
[345358703,1734181854142,-150.0,0.00026945,2]
[345358704,1734181854151,-150.0,0.00026945,2]
[345358705,1734181854161,-150.0,0.00026945,2]
[345358706,1734181854171,-150.0,0.00026946,2]
[345358707,1734181854181,-150.0,0.00026948,2]
[345358708,1734181854191,-150.0,0.0002695,2]
[345358709,1734181854200,-150.0,0.00026951,2]
[345358710,1734181854209,-150.0,0.00026958,2]
[345358711,1734181854218,-150.0,0.00026959,2]
[345358712,1734181854227,-150.0,0.00026963,2]
[345358713,1734181854235,-1500.0,0.00026964,2]
[345358714,1734181854245,-150.0,0.00026966,2]
[345358715,1734181854254,-150.0,0.00026969,2]
[345358716,1734181854263,-150.0,0.00026971,2]
[345358717,1734181854272,-150.0,0.00026973,2]
[345358718,1734181854282,-150.0,0.00026975,2]
[345358719,1734181854291,-150.0,0.00026978,2]
[345358720,1734181854300,-150.0,0.00026982,2]
[345358721,1734181854309,-150.0,0.00026984,2]
[345358722,1734181854319,-150.0,0.00026986,2]
[345358723,1734181854330,-32868.31661537,0.00026986,61]
[345358724,1734181854339,-8713.0,0.00026986,2]
[345358725,1734181854349,-9680.0,0.00026986,2]
[345358726,1734181854358,-1500.0,0.00026988,2]
[345358727,1734181854368,-150.0,0.00026999,2]
[345358728,1734181854379,-2000.0,0.00027,2]
[345358729,1734181854388,-1107.82775429,0.00027,7]
[345358730,1734181854402,-150.0,0.00027,2]
[345358731,1734181854414,-984.78,0.00027006,3]
[345358732,1734181854423,-500.0,0.00027007,3]
[345358733,1734181854432,-333.86,0.00027007,3]
[345358734,1734181854443,-500.0,0.00027007,3]
[345358735,1734181854452,-565.35,0.00027007,3]
[345358736,1734181854460,-500.0,0.00027007,3]
[345358737,1734181854471,-500.0,0.00027007,3]
[345358738,1734181854480,-500.0,0.00027007,3]
[345358739,1734181854491,-500.0,0.00027007,3]
[345358740,1734181854503,-500.0,0.00027007,3]
[345358741,1734181854513,-500.0,0.00027007,3]
[345358742,1734181854523,-500.0,0.00027007,3]
[345358743,1734181854532,-638.43,0.00027007,3]
[345358744,1734181854542,-500.0,0.00027007,3]
[345358745,1734181854553,-200.0,0.00027007,3]
[345358746,1734181854563,-500.0,0.00027007,3]
[345358747,1734181854572,-495.26,0.00027007,3]
[345358748,1734181854580,-500.0,0.00027007,3]
[345358749,1734181854589,-635.28,0.00027007,3]
[345358750,1734181854598,-466.56,0.00027007,3]
[345358751,1734181854607,-500.0,0.00027007,3]
[345358752,1734181854617,-191.2,0.00027007,3]
[345358753,1734181854626,-500.0,0.00027007,3]
[345358754,1734181854635,-500.0,0.00027007,3]
[345358755,1734181854644,-500.0,0.00027007,3]
[345358756,1734181854654,-175.68,0.00027007,2]
[345358757,1734181854665,-539.9,0.00027007,3]
[345358758,1734181854674,-500.0,0.00027007,3]
[345358759,1734181854684,-500.0,0.00027007,3]
[345358760,1734181854692,-618.56,0.00027007,3]
[345358761,1734181854702,-500.0,0.00027007,3]
[345358762,1734181854710,-500.0,0.00027007,3]
[345358763,1734181854719,-500.0,0.00027007,3]
[345358764,1734181854728,-500.0,0.00027007,3]
[345358765,1734181854737,-500.0,0.00027007,3]
[345358766,1734181854746,-500.0,0.00027007,3]
[345358767,1734181854755,-500.0,0.00027007,3]
[345358768,1734181854764,-182.98,0.00027007,3]
[345358769,1734181854773,-500.0,0.00027007,3]
[345358770,1734181854782,-500.0,0.00027007,3]
[345358771,1734181854791,-500.0,0.00027007,3]
[345358772,1734181854800,-519.23160413,0.00027007,3]
[345358773,1734181854809,-500.0,0.00027007,3]
[345358774,1734181854818,-500.0,0.00027007,3]
[345358775,1734181854828,-500.0,0.00027007,3]
[345358776,1734181854836,-500.0,0.00027007,3]
[345358777,1734181854846,-508.66690865,0.00027007,3]
[345358778,1734181854855,-500.0,0.00027007,3]
[345358779,1734181854864,-500.0,0.00027007,3]
[345358780,1734181854873,-500.0,0.00027007,3]
[345358781,1734181854883,-500.0,0.00027007,3]
[345358782,1734181854892,-1996.42,0.00027007,3]
[345358783,1734181854901,-319.95747165,0.00027007,3]
[345358784,1734181854911,-500.0,0.00027007,3]
[345358785,1734181854920,-500.0,0.00027007,3]
[345358786,1734181854929,-500.0,0.00027007,3]
[345358787,1734181854938,-500.0,0.00027007,3]
[345358788,1734181854947,-500.0,0.00027007,3]
[345358789,1734181854957,-500.0,0.00027007,3]
[345358790,1734181854966,-500.0,0.00027007,3]
[345358791,1734181854974,-500.0,0.00027007,3]
[345358792,1734181854983,-500.0,0.00027007,3]
[345358793,1734181854992,-500.0,0.00027007,3]
[345358794,1734181855001,-500.0,0.00027007,3]
[345358795,1734181855011,-500.0,0.00027007,3]
[345358796,1734181855021,-500.0,0.00027007,3]
[345358797,1734181855030,-1000.0,0.00027007,3]
[345358798,1734181855039,-500.0,0.00027007,3]
[345358799,1734181855048,-500.0,0.00027007,3]
[345358800,1734181855057,-500.0,0.00027007,3]
[345358801,1734181855066,-500.0,0.00027007,3]
[345358802,1734181855075,-500.0,0.00027007,3]
[345358803,1734181855085,-582.11,0.00027007,3]
[345358804,1734181855094,-394.94449129,0.00027007,3]
[345358805,1734181855104,-500.0,0.00027007,3]
[345358806,1734181855113,-176.3,0.00027007,3]
[345358807,1734181855122,-502.85566678,0.00027007,3]
[345358808,1734181855131,-500.0,0.00027007,3]
[345358809,1734181855140,-500.0,0.00027007,3]
[345358810,1734181855149,-973.29,0.00027007,3]
[345358811,1734181855158,-664.07,0.00027007,3]
[345358812,1734181855168,-414.75109967,0.00027007,3]
[345358813,1734181855177,-500.0,0.00027007,3]
[345358814,1734181855186,-284.66,0.00027007,3]
[345358815,1734181855195,-500.0,0.00027007,3]
[345358816,1734181855204,-500.0,0.00027007,3]
[345358817,1734181855213,-500.0,0.00027007,3]
[345358818,1734181855222,-247.51,0.00027007,3]
[345358819,1734181855230,-838.65,0.00027007,3]
[345358820,1734181855239,-500.0,0.00027007,3]
[345358821,1734181855248,-500.0,0.00027007,3]
[345358822,1734181855257,-500.0,0.00027007,3]
[345358823,1734181855266,-500.0,0.00027007,3]
[345358824,1734181855275,-201.30386286,0.00027007,3]
[345358825,1734181855284,-502.71534601,0.00027007,3]
[345358826,1734181855293,-500.0,0.00027007,3]
[345358827,1734181855302,-504.40717104,0.00027007,3]
[345358828,1734181855311,-649.31,0.00027007,3]
[345358829,1734181855320,-500.0,0.00027007,3]
[345358830,1734181855330,-523.6,0.00027007,3]
[345358831,1734181855339,-500.0,0.00027007,3]
[345358832,1734181855348,-500.0,0.00027007,3]
[345358833,1734181855357,-500.0,0.00027007,3]
[345358834,1734181855368,-184.97259761,0.00027007,3]
[345358835,1734181855377,-500.0,0.00027007,3]
[345358836,1734181855386,-500.0,0.00027007,3]
[345358837,1734181855398,-150.0,0.00027007,2]
[345358838,1734181855499,-152.248534,0.00027008,3]
[345358839,1734181855509,-295.765675,0.00027008,3]
[345358840,1734181855519,-176.9,0.00027008,3]
[345358841,1734181855530,-500.0,0.00027008,3]
[345358842,1734181855540,-500.0,0.00027008,3]
[345358843,1734181855550,-500.0,0.00027008,3]
[345358844,1734181855560,-500.0,0.00027008,3]
[345358845,1734181855570,-500.0,0.00027008,3]
[345358846,1734181855580,-500.0,0.00027008,3]
[345358847,1734181855590,-500.0,0.00027008,3]
[345358848,1734181855600,-500.0,0.00027008,3]
[345358849,1734181855610,-500.0,0.00027008,3]
[345358850,1734181855619,-500.0,0.00027008,3]
[345358851,1734181855629,-709.56,0.00027008,3]
[345358852,1734181855639,-500.0,0.00027008,3]
[345358853,1734181855649,-500.0,0.00027008,3]
[345358854,1734181855660,-500.0,0.00027008,3]
[345358855,1734181855673,-500.0,0.00027008,3]
[345358856,1734181855682,-500.0,0.00027008,3]
[345358857,1734181855692,-500.0,0.00027008,3]
[345358858,1734181855701,-500.0,0.00027008,3]
[345358859,1734181855710,-500.0,0.00027008,3]
[345358860,1734181855719,-606.24,0.00027008,3]
[345358861,1734181855729,-500.0,0.00027008,3]
[345358862,1734181855739,-500.0,0.00027008,3]
[345358863,1734181855749,-500.0,0.00027008,3]
[345358864,1734181855758,-500.0,0.00027008,3]
[345358865,1734181855767,-500.0,0.00027008,3]
[345358866,1734181855778,-500.0,0.00027008,3]
[345358867,1734181855787,-500.0,0.00027008,3]
[345358868,1734181855797,-500.0,0.00027008,3]
[345358869,1734181855806,-500.0,0.00027008,3]
[345358870,1734181855816,-500.0,0.00027008,3]
[345358871,1734181855825,-500.0,0.00027008,3]
[345358872,1734181855834,-500.0,0.00027008,3]
[345358873,1734181855844,-500.0,0.00027008,3]
[345358874,1734181855854,-500.0,0.00027008,3]
[345358875,1734181855864,-500.0,0.00027008,3]
[345358876,1734181855873,-1006.73624498,0.00027009,10]
[345358877,1734181855883,-347.44933964,0.00027009,2]
[345358878,1734181855891,-500.0,0.00027009,3]
[345358879,1734181855901,-528.02,0.00027009,3]
[345358880,1734181855913,-600.0,0.00027009,3]
[345358881,1734181855922,-600.0,0.00027009,3]
[345358882,1734181855931,-600.0,0.00027009,3]
[345358883,1734181855941,-600.0,0.00027009,3]
[345358884,1734181855951,-600.0,0.00027009,3]
[345358885,1734181855960,-602.92344933,0.00027009,3]
[345358886,1734181855970,-1000.0,0.00027009,3]
[345358887,1734181855979,-1000.0,0.00027009,3]
[345358888,1734181855989,-1000.0,0.00027009,3]
[345358889,1734181855999,-1000.0,0.00027009,3]
[345358890,1734181856008,-1000.0,0.00027009,3]
[345358891,1734181856018,-1000.0,0.00027009,3]
[345358892,1734181856028,-1000.0,0.00027009,3]
[345358893,1734181856038,-1000.0,0.00027009,3]
[345358894,1734181856047,-1000.0,0.00027009,3]
[345358895,1734181856056,-1000.0,0.00027009,3]
[345358896,1734181856066,-1000.0,0.00027009,3]
[345358897,1734181856075,-1000.0,0.00027009,3]
[345358898,1734181856085,-1000.0,0.00027009,3]
[345358899,1734181856095,-1000.0,0.00027009,3]
[345358900,1734181856104,-285.19,0.00027009,3]
[345358901,1734181856114,-216.95,0.00027009,3]
[345358902,1734181856123,-522.58,0.00027009,3]
[345358903,1734181856133,-500.0,0.00027009,3]
[345358904,1734181856142,-479.8521238,0.00027009,3]
[345358905,1734181856152,-245.56,0.00027009,3]
[345358906,1734181856164,-500.0,0.00027009,3]
[345358907,1734181856175,-295.61,0.00027009,3]
[345358908,1734181856184,-500.0,0.00027009,3]
[345358909,1734181856193,-630.52,0.00027009,3]
[345358910,1734181856203,-396.56,0.00027009,3]
[345358911,1734181856212,-500.0,0.00027009,3]
[345358912,1734181856222,-500.0,0.00027009,3]
[345358913,1734181856231,-425.81,0.00027009,3]
[345358914,1734181856240,-500.0,0.00027009,3]
[345358915,1734181856250,-500.0,0.00027009,3]
[345358916,1734181856259,-494.21,0.00027009,3]
[345358917,1734181856269,-500.0,0.00027009,3]
[345358918,1734181856279,-500.0,0.00027009,3]
[345358919,1734181856288,-500.0,0.00027009,3]
[345358920,1734181856298,-500.0,0.00027009,3]
[345358921,1734181856307,-500.0,0.00027009,3]
[345358922,1734181856316,-500.0,0.00027009,3]
[345358923,1734181856326,-249.83,0.00027009,3]
[345358924,1734181856335,-434.14,0.00027009,3]
[345358925,1734181856345,-215.68939535,0.00027009,3]
[345358926,1734181856354,-500.0,0.00027009,3]
[345358927,1734181856364,-557.47,0.00027009,3]
[345358928,1734181856374,-500.0,0.00027009,3]
[345358929,1734181856383,-500.0,0.00027009,3]
[345358930,1734181856392,-500.0,0.00027009,3]
[345358931,1734181856405,-245.33,0.00027009,3]
[345358932,1734181856418,-334.48588747,0.00027009,3]
[345358933,1734181856428,-500.0,0.00027009,3]
[345358934,1734181856437,-500.0,0.00027009,3]
[345358935,1734181856447,-500.0,0.00027009,3]
[345358936,1734181856457,-500.0,0.00027009,3]
[345358937,1734181856466,-500.0,0.00027009,3]
[345358938,1734181856475,-500.0,0.00027009,3]
[345358939,1734181856485,-500.0,0.00027009,3]
[345358940,1734181856494,-500.0,0.00027009,3]
[345358941,1734181856503,-500.0,0.00027009,3]
[345358942,1734181856512,-500.0,0.00027009,3]
[345358943,1734181856521,-266.55,0.00027009,3]
[345358944,1734181856530,-152.248534,0.00027009,3]
[345358945,1734181856539,-152.248534,0.00027009,3]
[345358946,1734181856548,-500.0,0.00027009,3]
[345358947,1734181856559,-500.0,0.00027009,3]
[345358948,1734181856569,-500.0,0.00027009,3]
[345358949,1734181856578,-500.0,0.00027009,3]
[345358950,1734181856589,-295.765675,0.00027009,3]
[345358951,1734181856598,-295.765675,0.00027009,3]
[345358952,1734181856608,-295.765675,0.00027009,3]
[345358953,1734181856618,-500.0,0.00027009,3]
[345358954,1734181856628,-500.0,0.00027009,3]
[345358955,1734181856638,-500.0,0.00027009,3]
[345358956,1734181856649,-500.0,0.00027009,3]
[345358957,1734181856659,-549.77,0.00027009,3]
[345358958,1734181856672,-500.0,0.00027009,3]
[345358959,1734181856681,-500.0,0.00027009,3]
[345358960,1734181856691,-500.0,0.00027009,3]
[345358961,1734181856700,-500.0,0.00027009,3]
[345358962,1734181856710,-500.0,0.00027009,3]
[345358963,1734181856720,-500.0,0.00027009,3]
[345358964,1734181856729,-574.17520077,0.00027009,3]
[345358965,1734181856739,-500.0,0.00027009,3]
[345358966,1734181856748,-500.0,0.00027009,3]
[345358967,1734181856758,-500.0,0.00027009,3]
[345358968,1734181856768,-500.0,0.00027009,3]
[345358969,1734181856777,-500.0,0.00027009,3]
[345358970,1734181856786,-500.0,0.00027009,3]
[345358971,1734181856796,-500.0,0.00027009,3]
[345358972,1734181856806,-500.0,0.00027009,3]
[345358973,1734181856816,-500.0,0.00027009,3]
[345358974,1734181856826,-500.0,0.00027009,3]
[345358975,1734181856836,-500.0,0.00027009,3]
[345358976,1734181856845,-500.0,0.00027009,3]
[345358977,1734181856855,-500.0,0.00027009,3]
[345358978,1734181856865,-500.0,0.00027009,3]
[345358979,1734181856875,-1996.42,0.00027009,3]
[345358980,1734181856885,-1996.42,0.00027009,3]
[345358981,1734181856894,-1996.42,0.00027009,3]
[345358982,1734181856905,-1996.42,0.00027009,3]
[345358983,1734181856917,-500.0,0.00027009,3]
[345358984,1734181856926,-155.29038458,0.00027009,3]
[345358985,1734181856936,-500.0,0.00027009,3]
[345358986,1734181856945,-500.0,0.00027009,3]
[345358987,1734181856954,-500.0,0.00027009,3]
[345358988,1734181856964,-500.0,0.00027009,3]
[345358989,1734181856973,-500.0,0.00027009,3]
[345358990,1734181856982,-500.0,0.00027009,3]
[345358991,1734181856991,-500.0,0.00027009,3]
[345358992,1734181857002,-500.0,0.00027009,3]
[345358993,1734181857012,-500.0,0.00027009,3]
[345358994,1734181857021,-500.0,0.00027009,3]
[345358995,1734181857033,-501.17,0.00027009,3]
[345358996,1734181857043,-500.0,0.00027009,3]
[345358997,1734181857052,-500.0,0.00027009,3]
[345358998,1734181857062,-500.0,0.00027009,3]
[345358999,1734181857071,-404.68,0.00027009,3]
[345359000,1734181857081,-500.0,0.00027009,3]
[345359001,1734181857091,-500.0,0.00027009,3]
[345359002,1734181857100,-500.0,0.00027009,3]
[345359003,1734181857110,-516.0,0.00027009,3]
[345359004,1734181857120,-500.0,0.00027009,3]
[345359005,1734181857129,-1000.0,0.00027009,3]
[345359006,1734181857139,-500.0,0.00027009,3]
[345359007,1734181857149,-500.0,0.00027009,3]
[345359008,1734181857160,-500.0,0.00027009,3]
[345359009,1734181857172,-500.0,0.00027009,3]
[345359010,1734181857182,-500.0,0.00027009,3]
[345359011,1734181857192,-500.0,0.00027009,3]
[345359012,1734181857202,-500.0,0.00027009,3]
[345359013,1734181857211,-235.94,0.00027009,3]
[345359014,1734181857221,-500.0,0.00027009,3]
[345359015,1734181857231,-709.56,0.00027009,3]
[345359016,1734181857328,-709.56,0.00027009,3]
[345359017,1734181857339,-709.56,0.00027009,3]
[345359018,1734181857348,-500.0,0.00027009,3]
[345359019,1734181857358,-500.0,0.00027009,3]
[345359020,1734181857367,-161.96800568,0.00027009,3]
[345359021,1734181857378,-500.0,0.00027009,3]
[345359022,1734181857388,-500.0,0.00027009,3]
[345359023,1734181857398,-500.0,0.00027009,3]
[345359024,1734181857415,-352.65,0.00027009,3]
[345359025,1734181857425,-500.0,0.00027009,3]
[345359026,1734181857434,-500.0,0.00027009,3]
[345359027,1734181857444,-500.0,0.00027009,3]
[345359028,1734181857452,-500.0,0.00027009,3]
[345359029,1734181857461,-500.0,0.00027009,3]
[345359030,1734181857470,-277.83,0.00027009,3]
[345359031,1734181857480,-500.0,0.00027009,3]
[345359032,1734181857490,-500.0,0.00027009,3]
[345359033,1734181857499,-500.0,0.00027009,3]
[345359034,1734181857508,-500.0,0.00027009,3]
[345359035,1734181857518,-500.0,0.00027009,3]
[345359036,1734181857528,-500.0,0.00027009,3]
[345359037,1734181857538,-500.0,0.00027009,3]
[345359038,1734181857547,-973.29,0.00027009,3]
[345359039,1734181857557,-973.29,0.00027009,3]
[345359040,1734181857567,-973.29,0.00027009,3]
[345359041,1734181857576,-973.29,0.00027009,3]
[345359042,1734181857585,-664.07,0.00027009,3]
[345359043,1734181857595,-664.07,0.00027009,3]
[345359044,1734181857604,-664.07,0.00027009,3]
[345359045,1734181857613,-664.07,0.00027009,3]
[345359046,1734181857621,-500.0,0.00027009,3]
[345359047,1734181857631,-500.0,0.00027009,3]
[345359048,1734181857640,-500.0,0.00027009,3]
[345359049,1734181857650,-500.0,0.00027009,3]
[345359050,1734181857659,-500.0,0.00027009,3]
[345359051,1734181857671,-500.0,0.00027009,3]
[345359052,1734181857681,-450.33,0.00027009,3]
[345359053,1734181857690,-432.89653833,0.00027009,3]
[345359054,1734181857700,-500.0,0.00027009,3]
[345359055,1734181857710,-500.0,0.00027009,3]
[345359056,1734181857720,-500.0,0.00027009,3]
[345359057,1734181857729,-500.0,0.00027009,3]
[345359058,1734181857738,-500.0,0.00027009,3]
[345359059,1734181857748,-500.0,0.00027009,3]
[345359060,1734181857757,-500.0,0.00027009,3]
[345359061,1734181857767,-500.0,0.00027009,3]
[345359062,1734181857777,-500.0,0.00027009,3]
[345359063,1734181857788,-500.0,0.00027009,3]
[345359064,1734181857797,-500.0,0.00027009,3]
[345359065,1734181857808,-500.0,0.00027009,3]
[345359066,1734181857818,-500.0,0.00027009,3]
[345359067,1734181857829,-500.0,0.00027009,3]
[345359068,1734181857840,-500.0,0.00027009,3]
[345359069,1734181857852,-500.0,0.00027009,3]
[345359070,1734181857863,-500.0,0.00027009,3]
[345359071,1734181857874,-500.0,0.00027009,3]
[345359072,1734181857885,-500.0,0.00027009,3]
[345359073,1734181857895,-500.0,0.00027009,3]
[345359074,1734181857905,-838.65,0.00027009,3]
[345359075,1734181857916,-838.65,0.00027009,3]
[345359076,1734181857926,-838.65,0.00027009,3]
[345359077,1734181857935,-838.65,0.00027009,3]